bitfinex/quotes_SOLUSD_20220302
["timestamp","ask_amount","ask_price","bid_price","bid_amount"]
[1646262312705,5.208,100.86,100.81,3.03219997]
[1646262314107,20.094,100.86,100.81,3.03219997]
[1646262314709,2.47598296,100.85,100.81,3.03219997]
[1646262314908,2.72598296,100.85,100.81,3.03219997]
[1646262316709,2.72598296,100.85,100.79,29.5745]
[1646262316910,2.72598296,100.85,100.79,29.8245]
[1646262318810,2.72598296,100.85,100.79,29.3245]
[1646262319711,2.72598296,100.85,100.8,5.0]
[1646262320912,2.72598296,100.85,100.79,24.3245]
[1646262321415,2.72598296,100.85,100.8,5.0]
[1646262321616,2.72598296,100.85,100.79,24.0745]
[1646262322414,2.72598296,100.85,100.78,117.17893217]
[1646262322613,2.72598296,100.85,100.77,29.1312]
[1646262322815,74.2098,100.84,100.77,29.3812]
[1646262323014,74.4598,100.84,100.77,29.3812]
[1646262323414,79.4198,100.84,100.77,29.3812]
[1646262323617,79.4198,100.84,100.77,24.3812]
[1646262323815,2.47598296,100.83,100.77,24.3812]
[1646262325017,2.72598296,100.83,100.77,24.3812]
[1646262330022,2.47598296,100.83,100.77,24.3812]
[1646262330422,2.72598296,100.83,100.77,24.3812]
[1646262331424,2.47598296,100.83,100.77,24.3812]
[1646262332726,2.72598296,100.83,100.77,24.3812]
[1646262337248,2.72598296,100.83,100.77,24.1312]
[1646262338651,2.72598296,100.83,100.77,24.3812]
[1646262339254,2.47598296,100.83,100.77,24.3812]
[1646262339454,2.47598296,100.83,100.77,137.3512]
[1646262339652,2.47598296,100.83,100.8,5.0]
[1646262339852,2.47598296,100.83,100.8,103.93]
[1646262340053,4.96,100.88,100.8,118.22]
[1646262340254,4.96,100.88,100.8,19.54]
[1646262340653,5.21,100.88,100.8,118.22]
[1646262340954,5.21,100.88,100.81,14.8799]
[1646262341158,0.25,100.88,100.81,98.93]
[1646262341359,4.958,100.91,100.81,113.22]
[1646262341557,4.958,100.91,100.84,5.0]
[1646262341754,4.958,100.91,100.84,5.25]
[1646262342754,5.208,100.91,100.84,5.25]
[1646262342955,4.958,100.91,100.84,5.25]
[1646262343754,4.958,100.91,100.84,103.93]
[1646262343959,4.956,100.93,100.84,98.93]
[1646262344255,4.956,100.94,100.86,14.8726]
[1646262344556,4.956,100.94,100.86,98.93]
[1646262344754,214.7438,100.99,100.86,98.93]
[1646262344755,4.955,100.96,100.86,113.22]
[1646262344955,4.954,100.98,100.87,2.54904003]
[1646262345158,4.954,100.98,100.88,112.97]
[1646262345354,4.954,100.98,100.92,113.5437]
[1646262345557,4.954,100.98,100.93,103.68]
[1646262345757,112.9,100.99,100.93,5.25]
[1646262346557,112.9,100.99,100.93,34.4023]
[1646262346755,112.9,100.99,100.94,98.68]
[1646262346955,112.9,100.99,100.95,19.29]
[1646262347157,112.9,100.99,100.95,19.54]
[1646262347955,112.9,100.99,100.95,113.22]
[1646262348857,112.9,100.99,100.95,14.54]
[1646262349060,112.9,100.99,100.96,64.77586129]
[1646262349258,112.9,100.99,100.97,2.01116171]
[1646262349458,112.9,100.99,100.98,50.56773934]
[1646262350860,112.9,100.99,100.97,2.01116171]
[1646262351063,112.9,100.99,100.97,2.26116171]
[1646262351860,112.9,100.99,100.97,54.43415023]
[1646262355365,112.86786,100.99,100.97,54.43415023]
[1646262355865,112.80371,100.99,100.97,54.43415023]
[1646262356063,112.78155,100.99,100.97,54.43415023]
[1646262357166,112.78155,100.99,100.97,2.26116171]
[1646262358267,64.21562789,100.99,100.97,2.26116171]
[1646262360868,64.21562789,100.99,100.93,29.1517]
[1646262361069,64.46562789,100.99,100.92,24.3947]
[1646262361269,64.46562789,100.99,100.93,52.02087961]
[1646262362668,64.46562789,100.99,100.93,52.27087961]
[1646262363369,123.78562789,100.99,100.93,0.25]
[1646262363570,0.21227309,100.98,100.92,0.25]
[1646262363769,0.21227309,100.98,100.91,0.25]
[1646262363970,0.21227309,100.98,100.91,5.0]
[1646262364170,0.21227309,100.98,100.91,5.25]
[1646262364371,238.02046493,100.99,100.92,65.49730282]
[1646262364573,62.94780599,100.97,100.92,65.74730282]
[1646262364771,63.19780599,100.97,100.92,65.74730282]
[1646262367773,0.25,100.97,100.92,65.74730282]
[1646262367975,5.202,100.98,100.92,65.74730282]
[1646262368578,112.9,100.99,100.92,164.42730282]
[1646262368781,112.9,100.99,100.92,188.27934285]
[1646262370006,113.15,100.99,100.93,14.8623]
[1646262370205,113.15,100.99,100.94,56.25836553]
[1646262370408,113.15,100.99,100.94,56.50836553]
[1646262373810,177.55727756,100.99,100.94,56.50836553]
[1646262374009,113.15,100.99,100.94,56.50836553]
[1646262377213,112.9,100.99,100.94,71.36936553]
[1646262377415,60.79719825,101.01,100.94,71.36936553]
[1646262377716,60.79719825,101.01,100.94,170.04936553]
[1646262377915,60.79719825,101.01,100.94,71.36936553]
[1646262378615,61.04719825,101.01,100.94,71.36936553]
[1646262381320,61.04719825,101.01,100.94,56.25836553]
[1646262382117,121.94923825,101.01,100.94,56.25836553]
[1646262382722,123.82470188,101.01,100.91,5.0]
[1646262382921,0.23970494,101.0,100.9,45.31]
[1646262383117,4.952,100.99,100.9,45.31]
[1646262383316,64.522,100.99,100.9,45.31]
[1646262383719,56.09469969,100.98,100.91,51.82900647]
[1646262384018,62.85189836,100.96,100.91,51.82900647]
[1646262384217,63.10189836,100.96,100.91,51.82900647]
[1646262385917,63.10189836,100.96,100.89,5.0]
[1646262386116,0.11898614,100.95,100.89,5.0]
[1646262386516,4.954,100.95,100.89,5.0]
[1646262386716,5.204,100.95,100.89,5.0]
[1646262386917,60.20447167,100.94,100.9,54.42196231]
[1646262387118,60.45447167,100.94,100.9,54.42196231]
[1646262390821,60.45447167,100.94,100.87,5.0]
[1646262390822,218.45447167,100.94,100.87,5.0]
[1646262391120,0.32668203,100.91,100.83,5.0]
[1646262391321,0.32668203,100.88,100.76,52.1992]
[1646262391720,0.32668203,100.88,100.76,66.4892]
[1646262391921,113.48236945,100.88,100.79,47.06685829]
[1646262392125,59.57,100.88,100.79,47.06685829]
[1646262393126,14.8842,100.87,100.79,47.06685829]
[1646262393324,15.1342,100.87,100.79,47.06685829]
[1646262393824,4.958,100.86,100.79,47.06685829]
[1646262394024,56.51639463,100.86,100.79,52.06685829]
[1646262394224,71.40179463,100.86,100.79,52.06685829]
[1646262394424,20.0934,100.86,100.79,52.06685829]
[1646262395729,20.0934,100.86,100.79,52.31685829]
[1646262396126,5.208,100.86,100.79,123.20881656]
[1646262396335,0.25,100.86,100.79,123.20881656]
[1646262396527,15.1329,100.88,100.79,123.20881656]
[1646262397428,15.1329,100.88,100.81,5.0]
[1646262397627,15.1329,100.88,100.82,52.37392437]
[1646262399430,74.4529,100.88,100.82,52.37392437]
[1646262400431,4.957,100.87,100.82,52.37392437]
[1646262400634,5.207,100.87,100.82,52.37392437]
[1646262403438,61.7996643,100.87,100.82,52.37392437]
[1646262403665,76.6833643,100.87,100.82,52.37392437]
[1646262403837,71.7263643,100.87,100.82,52.37392437]
[1646262404236,15.1337,100.87,100.82,52.37392437]
[1646262404636,4.958,100.86,100.82,52.37392437]
[1646262404837,5.208,100.86,100.82,52.37392437]
[1646262408136,0.25,100.86,100.82,52.37392437]
[1646262408336,15.1337,100.87,100.82,52.37392437]
[1646262409538,67.72032962,100.86,100.82,52.37392437]
[1646262409737,67.97032962,100.86,100.82,52.37392437]
[1646262410138,15.1352,100.86,100.82,52.37392437]
[1646262410838,0.25,100.86,100.82,52.37392437]
[1646262411042,60.48443613,100.87,100.82,52.37392437]
[1646262412140,75.36833613,100.87,100.82,52.37392437]
[1646262412544,134.68833613,100.87,100.78,28.0299]
[1646262412740,1.87546363,100.86,100.78,28.0299]
[1646262412941,4.958,100.85,100.78,28.0299]
[1646262413142,5.208,100.85,100.78,28.0299]
[1646262413544,61.24386765,100.84,100.79,55.4428659]
[1646262413742,68.61386765,100.84,100.78,23.0299]
[1646262413941,68.61386765,100.84,100.76,28.2017]
[1646262414141,4.96,100.83,100.76,28.2017]
[1646262414342,5.21,100.83,100.76,28.2017]
[1646262414542,5.21,100.83,100.76,4.958]
[1646262414744,65.6574963,100.82,100.77,50.15200267]
[1646262414956,65.9074963,100.82,100.77,50.15200267]
[1646262415147,65.9074963,100.82,100.76,4.958]
[1646262415346,125.2274963,100.82,100.76,4.958]
[1646262416048,125.2274963,100.82,100.76,63.62654137]
[1646262416646,64.28,100.81,100.76,63.62654137]
[1646262416847,76.97098588,100.8,100.76,2.4815265]
[1646262417048,136.54098588,100.8,100.76,2.4815265]
[1646262417247,136.54098588,100.8,100.73,5.0]
[1646262417449,136.54098588,100.8,100.72,24.8547]
[1646262417948,136.54098588,100.8,100.72,49.62555269]
[1646262418350,4.962,100.79,100.72,49.62555269]
[1646262418556,56.19836594,100.78,100.72,49.87555269]
[1646262418767,64.74936594,100.78,100.72,49.87555269]
[1646262419168,8.551,100.78,100.72,49.87555269]
[1646262419869,0.25,100.78,100.72,49.87555269]
[1646262420070,66.86439945,100.79,100.72,49.87555269]
[1646262420669,66.86439945,100.79,100.72,54.83755269]
[1646262422171,20.1078,100.79,100.72,54.83755269]
[1646262422371,4.962,100.79,100.72,54.83755269]
[1646262422571,27.7805,100.8,100.72,54.83755269]
[1646262423171,27.7805,100.8,100.72,153.51755269]
[1646262423371,22.8185,100.8,100.72,153.51755269]
[1646262424273,22.8185,100.8,100.72,168.41065269]
[1646262424474,4.962,100.81,100.72,168.41065269]
[1646262424673,4.962,100.81,100.72,182.70065269]
[1646262424875,77.0126142,100.83,100.73,0.15576646]
[1646262425075,4.962,100.83,100.75,98.68]
[1646262425275,4.96,100.84,100.75,98.93]
[1646262425676,4.96,100.84,100.76,4.96]
[1646262425878,4.96,100.84,100.76,5.21]
[1646262426076,4.96,100.84,100.77,48.13184623]
[1646262426285,4.96,100.84,100.77,48.38184623]
[1646262428276,62.60277617,100.84,100.77,48.13184623]
[1646262428477,62.60277617,100.84,100.77,48.38184623]
[1646262429177,5.21,100.84,100.77,48.38184623]
[1646262430279,4.96,100.84,100.77,161.94794623]
[1646262430480,1.87546363,100.88,100.78,113.64]
[1646262430778,104.5824,100.92,100.8,98.68]
[1646262430979,104.5824,100.92,100.81,46.4569]
[1646262431278,6.83246363,100.91,100.81,150.3439]
[1646262431480,6.83246363,100.91,100.82,46.87329171]
[1646262431677,6.83246363,100.91,100.82,47.12329171]
[1646262431879,7.08246363,100.91,100.82,47.12329171]
[1646262432078,21.96176363,100.91,100.82,52.08029171]
[1646262432278,21.96176363,100.91,100.84,5.0]
[1646262432479,21.96176363,100.91,100.85,65.66693285]
[1646262435389,59.32,100.89,100.79,14.8821]
[1646262435589,0.14398844,100.88,100.77,46.9356]
[1646262435788,73.61,100.87,100.77,46.9356]
[1646262435988,75.73546363,100.87,100.77,46.9356]
[1646262436191,80.69346363,100.87,100.78,4.959]
[1646262436392,117.41272354,100.86,100.79,52.38969043]
[1646262436593,14.889,100.85,100.79,52.38969043]
[1646262436790,31.30446363,100.85,100.79,52.38969043]
[1646262437689,63.1251193,100.84,100.79,52.38969043]
[1646262437890,63.3751193,100.84,100.79,52.38969043]
[1646262438492,124.57058293,100.84,100.77,46.9356]
[1646262438892,138.86058293,100.84,100.77,46.9356]
[1646262439494,138.86058293,100.84,100.78,50.04921715]
[1646262440498,4.958,100.83,100.78,50.04921715]
[1646262440696,20.0991,100.83,100.78,50.04921715]
[1646262441096,63.22677824,100.82,100.78,50.04921715]
[1646262441299,59.32,100.81,100.75,5.0]
[1646262441497,64.531,100.81,100.75,5.0]
[1646262441799,64.531,100.81,100.73,9.958]
[1646262442195,59.57,100.81,100.73,9.958]
[1646262442598,59.57,100.81,100.73,10.208]
[1646262442998,74.4637,100.81,100.74,62.93461141]
[1646262443198,74.4637,100.81,100.74,63.18461141]
[1646262443399,74.4637,100.81,100.74,68.18461141]
[1646262443798,4.961,100.8,100.74,68.18461141]
[1646262443998,5.211,100.8,100.74,68.18461141]
[1646262444798,5.211,100.8,100.74,63.18461141]
[1646262444799,0.25,100.8,100.74,63.18461141]
[1646262445003,0.25,100.8,100.74,68.18461141]
[1646262445199,4.961,100.8,100.74,63.18461141]
[1646262445399,5.211,100.8,100.74,63.18461141]
[1646262445599,5.211,100.8,100.75,5.0]
[1646262445802,4.961,100.82,100.76,61.15778668]
[1646262446798,4.961,100.82,100.76,66.15778668]
[1646262447199,125.71939611,100.82,100.76,61.15778668]
[1646262447599,59.57,100.82,100.76,61.15778668]
[1646262448199,19.8535,100.81,100.76,61.15778668]
[1646262448399,20.1035,100.81,100.76,61.15778668]
[1646262448904,61.83713573,100.8,100.74,5.0]
[1646262449101,128.58113573,100.8,100.74,5.0]
[1646262449301,59.32,100.78,100.74,5.0]
[1646262449504,59.57,100.78,100.71,4.96]
[1646262449701,4.963,100.77,100.68,28.353]
[1646262449903,64.00517404,100.76,100.7,54.82391755]
[1646262450103,64.25517404,100.76,100.7,54.82391755]
[1646262450303,123.57517404,100.76,100.7,54.82391755]
[1646262450503,14.9029,100.75,100.69,5.0]
[1646262450701,15.1529,100.75,100.69,5.0]
[1646262451103,74.4729,100.75,100.69,9.964]
[1646262451305,74.4729,100.75,100.69,4.964]
[1646262451502,58.87451876,100.74,100.69,59.3496136]
[1646262451706,64.08851876,100.74,100.69,54.3856136]
[1646262452445,147.02641876,100.74,100.67,4.964]
[1646262452610,1.87546363,100.73,100.66,5.0]
[1646262452810,59.32,100.72,100.64,24.9794]
[1646262453109,73.86,100.72,100.64,24.4794]
[1646262453309,59.32,100.7,100.62,50.63716682]
[1646262453510,74.2342,100.68,100.62,50.63716682]
[1646262453716,63.97109638,100.67,100.62,50.63716682]
[1646262453910,72.73609638,100.67,100.62,50.63716682]
[1646262454110,8.765,100.67,100.62,50.63716682]
[1646262454310,8.765,100.67,100.61,1.799]
[1646262454511,82.375,100.67,100.61,1.799]
[1646262454715,4.968,100.66,100.61,1.799]
[1646262454916,14.29,100.65,100.61,1.799]
[1646262455116,4.968,100.64,100.61,1.799]
[1646262455412,63.04958218,100.63,100.61,1.799]
[1646262455613,63.29958218,100.63,100.61,1.799]
[1646262456014,0.25,100.63,100.61,1.799]
[1646262456615,19.509,100.65,100.61,1.799]
[1646262457016,50.20736111,100.64,100.61,1.799]
[1646262457217,0.25,100.64,100.61,1.799]
[1646262457815,19.259,100.65,100.61,1.799]
[1646262458217,66.68554912,100.65,100.61,1.799]
[1646262458514,66.68554912,100.65,100.61,66.36800427]
[1646262458515,19.259,100.65,100.61,66.36800427]
[1646262458714,14.29,100.65,100.61,66.36800427]
[1646262459114,14.54,100.65,100.61,66.36800427]
[1646262459515,14.29,100.65,100.61,66.36800427]
[1646262459719,19.258,100.65,100.61,66.36800427]
[1646262459915,14.29,100.65,100.61,66.36800427]
[1646262460916,14.54,100.65,100.61,66.36800427]
[1646262461720,0.25,100.65,100.61,66.36800427]
[1646262461919,19.508,100.67,100.61,66.36800427]
[1646262462625,14.29,100.67,100.61,78.2650443]
[1646262462821,14.29,100.7,100.61,78.2650443]
[1646262463026,14.29,100.73,100.62,0.41626524]
[1646262463222,4.966,100.72,100.62,0.41626524]
[1646262463422,4.966,100.72,100.63,2.54904003]
[1646262463622,4.966,100.74,100.63,17.70524003]
[1646262463824,35.0504214,100.76,100.63,17.70524003]
[1646262463825,4.965,100.75,100.63,17.70524003]
[1646262464027,4.965,100.75,100.64,2.54904003]
[1646262464226,4.965,100.76,100.65,112.97]
[1646262464426,4.964,100.77,100.66,49.32190889]
[1646262464626,64.284,100.77,100.66,52.12094892]
[1646262464827,64.284,100.77,100.66,49.57190889]
[1646262465030,64.284,100.77,100.68,56.41417996]
[1646262465228,64.284,100.77,100.68,56.66417996]
[1646262465527,4.964,100.77,100.68,56.66417996]
[1646262465931,13.81546363,100.79,100.68,157.89321999]
[1646262466133,112.9,100.81,100.68,193.73711418]
[1646262466331,112.9,100.81,100.69,0.14904613]
[1646262466533,112.9,100.81,100.7,112.54283901]
[1646262466730,112.9,100.81,100.7,157.04787531]
[1646262466931,112.9,100.81,100.71,28.62844944]
[1646262467130,112.9,100.81,100.73,70.71553615]
[1646262467329,112.9,100.81,100.76,58.54237945]
[1646262467552,112.9,100.81,100.76,58.79237945]
[1646262469150,112.9,100.81,100.76,58.54237945]
[1646262469350,113.15,100.81,100.76,58.54237945]
[1646262470154,164.40807235,100.81,100.76,58.54237945]
[1646262472955,164.40807235,100.81,100.72,14.8932]
[1646262473155,164.40807235,100.81,100.72,15.1432]
[1646262473554,164.40807235,100.81,100.73,4.962]
[1646262473756,164.40807235,100.81,100.73,7.76104003]
[1646262473955,164.40807235,100.81,100.74,50.33505535]
[1646262474157,164.40807235,100.81,100.76,61.24217003]
[1646262475960,113.15,100.81,100.76,61.24217003]
[1646262477262,64.60399652,100.8,100.76,61.24217003]
[1646262477462,64.85399652,100.8,100.76,61.24217003]
[1646262477863,5.211,100.8,100.76,61.24217003]
[1646262480365,5.211,100.8,100.73,2.54904003]
[1646262480563,5.211,100.8,100.73,2.79904003]
[1646262480761,5.211,100.8,100.73,0.25]
[1646262480962,0.11135732,100.79,100.73,0.25]
[1646262481163,0.11135732,100.79,100.74,7.51104003]
[1646262481362,227.37970766,100.81,100.75,65.39271736]
[1646262481363,227.62970766,100.81,100.75,65.39271736]
[1646262484365,222.66770766,100.81,100.75,65.39271736]
[1646262485367,4.961,100.8,100.75,65.39271736]
[1646262485570,5.211,100.8,100.75,65.39271736]
[1646262486571,0.25,100.8,100.75,65.39271736]
[1646262486773,4.961,100.82,100.75,67.94175739]
[1646262486972,357.27201756,100.86,100.75,67.94175739]
[1646262486973,4.961,100.84,100.76,4.961]
[1646262487170,57.33656326,100.85,100.77,48.11963532]
[1646262487372,57.33656326,100.85,100.77,50.91867535]
[1646262487572,57.33656326,100.85,100.78,2.54904003]
[1646262487771,57.33656326,100.85,100.79,61.63891487]
[1646262488173,4.958,100.84,100.79,61.63891487]
[1646262488371,5.208,100.84,100.79,61.63891487]
[1646262489171,4.958,100.84,100.79,61.88891487]
[1646262489371,4.958,100.85,100.79,61.88891487]
[1646262489572,112.9,100.86,100.8,2.54904003]
[1646262489770,112.9,100.86,100.79,66.88891487]
[1646262489977,112.9,100.86,100.8,4.958]
[1646262490171,49.85797651,100.85,100.8,4.958]
[1646262490373,109.17797651,100.85,100.79,61.63891487]
[1646262490573,116.26144014,100.85,100.79,61.63891487]
[1646262491373,116.26144014,100.85,100.77,4.958]
[1646262491574,109.17797651,100.85,100.77,5.208]
[1646262492376,109.17797651,100.85,100.78,48.52644055]
[1646262492575,109.17797651,100.85,100.79,4.958]
[1646262492977,112.98599389,100.85,100.75,24.27]
[1646262493178,121.60299389,100.85,100.75,24.27]
[1646262493381,0.13739608,100.84,100.75,24.27]
[1646262493579,59.32,100.82,100.75,24.27]
[1646262493779,59.57,100.82,100.75,24.27]
[1646262493978,58.1486593,100.81,100.76,51.18675332]
[1646262494179,58.3986593,100.81,100.77,4.961]
[1646262494378,58.3986593,100.81,100.76,56.14675332]
[1646262494780,58.3986593,100.81,100.76,51.18675332]
[1646262494978,0.25,100.81,100.76,51.18675332]
[1646262495182,59.57,100.82,100.76,51.18675332]
[1646262495982,59.61305814,100.81,100.76,51.18675332]
[1646262496182,59.86305814,100.81,100.76,51.18675332]
[1646262496984,0.25,100.81,100.76,51.18675332]
[1646262497185,59.57,100.82,100.76,51.18675332]
[1646262497788,59.32,100.82,100.76,51.18675332]
[1646262497987,111.19730711,100.82,100.76,51.18675332]
[1646262498790,4.96,100.81,100.76,51.18675332]
[1646262499194,5.21,100.81,100.76,51.18675332]
[1646262500000,51.40720491,100.8,100.76,51.18675332]
[1646262500195,0.25,100.8,100.76,51.18675332]
[1646262501211,66.21246401,100.81,100.76,51.18675332]
[1646262501408,66.46246401,100.81,100.76,51.18675332]
[1646262501809,66.46246401,100.81,100.73,38.3241]
[1646262502010,125.78246401,100.81,100.73,23.4331]
[1646262502212,4.961,100.8,100.73,23.4331]
[1646262502411,5.211,100.8,100.73,23.4331]
[1646262502613,64.531,100.8,100.73,23.4331]
[1646262502814,58.46440899,100.79,100.73,23.4331]
[1646262503011,58.71440899,100.79,100.73,23.4331]
[1646262503213,118.03440899,100.79,100.71,29.0161]
[1646262503411,64.282,100.78,100.71,24.0161]
[1646262503611,64.532,100.78,100.67,35.8391]
[1646262503813,66.40746363,100.78,100.68,5.0]
[1646262504411,124.27959398,100.77,100.69,51.95290569]
[1646262504612,60.27155889,100.75,100.69,52.20290569]
[1646262504812,60.52155889,100.75,100.69,51.95290569]
[1646262505712,60.52155889,100.75,100.68,5.0]
[1646262505913,60.52155889,100.75,100.68,5.25]
[1646262507013,60.52155889,100.75,100.69,60.43172387]
[1646262508615,60.52155889,100.75,100.69,60.68172387]
[1646262509018,60.52155889,100.75,100.69,60.43172387]
[1646262509218,119.84155889,100.75,100.68,5.0]
[1646262509417,4.964,100.74,100.68,5.25]
[1646262509617,5.214,100.74,100.68,5.25]
[1646262510220,5.214,100.74,100.69,66.18646205]
[1646262512219,0.25,100.74,100.69,66.18646205]
[1646262512520,4.964,100.77,100.7,2.54904003]
[1646262512724,4.963,100.79,100.7,2.79904003]
[1646262512920,67.09684824,100.8,100.71,57.90593604]
[1646262513121,62.13384824,100.8,100.71,72.64497607]
[1646262513719,62.13384824,100.8,100.71,70.09593604]
[1646262514124,4.962,100.81,100.72,2.54904003]
[1646262514320,4.962,100.84,100.74,98.68]
[1646262514520,4.962,100.84,100.74,98.93]
[1646262514721,4.962,100.84,100.75,2.54904003]
[1646262514921,4.962,100.84,100.75,7.79904003]
[1646262515121,50.57922347,100.83,100.76,47.941762]
[1646262515321,59.32,100.86,100.76,50.74080203]
[1646262515521,30.0,101.03,101.0,1735.60935672]
[1646262515721,159.39250468,101.01,101.0,1516.39834562]
[1646262515923,327.38880468,101.01,101.0,890.38780393]
[1646262516222,359.04447615,101.01,101.0,456.12355995]
[1646262516423,343.10107726,101.01,101.0,284.08355995]
[1646262516625,379.14658459,101.01,101.0,46.64215995]
[1646262516823,40.0,101.0,100.81,11.94]
[1646262517023,17.46354317,100.99,100.82,54.24040824]
[1646262517225,16.895,100.99,100.82,66.43040824]
[1646262517425,25.02721713,100.98,100.83,56.77175608]
[1646262517626,16.895,100.97,100.84,4.955]
[1646262517827,16.895,100.97,100.85,59.161689]
[1646262518027,2.48208486,100.96,100.86,4.954]
[1646262518226,2.48208486,100.96,100.87,54.20569421]
[1646262518227,36.96721713,100.96,100.87,54.20569421]
[1646262518428,36.96721713,100.96,100.88,4.954]
[1646262518627,2.48208486,100.95,100.89,64.46293704]
[1646262518827,24.16055047,100.95,100.89,64.46293704]
[1646262519530,29.11455047,100.95,100.89,64.46293704]
[1646262520633,4.33145395,100.94,100.89,64.46293704]
[1646262520833,3.34875152,100.94,100.89,64.46293704]
[1646262521030,18.25119704,100.94,100.89,64.46293704]
[1646262521230,0.59124229,100.93,100.89,64.46293704]
[1646262521532,18.25119704,100.94,100.89,64.46293704]
[1646262522137,18.50119704,100.94,100.89,64.46293704]
[1646262524339,0.98270243,100.93,100.89,64.46293704]
[1646262524538,18.50119704,100.94,100.89,64.46293704]
[1646262525543,18.25119704,100.94,100.89,64.46293704]
[1646262525741,4.954,100.98,100.89,67.03902459]
[1646262525943,4.953,100.99,100.89,67.03902459]
[1646262526143,44.953,101.0,100.89,67.03902459]
[1646262526743,0.53009746,100.99,100.89,67.03902459]
[1646262526947,4.953,100.98,100.89,67.03902459]
[1646262527143,0.25,100.98,100.89,67.03902459]
[1646262527342,5.203,100.99,100.89,67.03902459]
[1646262527562,0.70194557,100.98,100.89,67.03902459]
[1646262527762,5.203,100.99,100.89,67.03902459]
[1646262528363,5.203,100.99,100.89,114.50422459]
[1646262529164,5.203,100.99,100.91,52.23765319]
[1646262529363,5.203,100.99,100.91,52.48765319]
[1646262531767,0.68089522,100.98,100.91,52.18636515]
[1646262532367,4.953,100.99,100.92,7.50204003]
[1646262532669,44.952,101.0,100.93,57.09129241]
[1646262532869,44.952,101.0,100.93,57.34129241]
[1646262533068,44.952,101.0,100.93,62.29329241]
[1646262533267,44.952,101.0,100.93,57.34129241]
[1646262533666,45.202,101.0,100.93,57.34129241]
[1646262534569,44.952,101.0,100.93,57.34129241]
[1646262535571,0.6292183,100.99,100.93,57.34129241]
[1646262535772,44.952,101.0,100.95,51.2387762]
[1646262536171,45.202,101.0,100.95,51.2387762]
[1646262536870,45.202,101.0,100.95,48.75763289]
[1646262537071,0.75703207,100.99,100.95,48.75763289]
[1646262537273,45.202,101.0,100.95,48.75763289]
[1646262537671,40.25,101.0,100.95,48.75763289]
[1646262538374,0.76124733,100.99,100.95,48.75763289]
[1646262538772,40.25,101.0,100.95,48.75763289]
[1646262539372,0.25,101.0,100.95,48.75763289]
[1646262539573,15.1165,101.01,100.95,48.75763289]
[1646262539974,0.25,101.01,100.95,48.75763289]
[1646262540175,15.264,101.02,100.95,48.75763289]
[1646262541076,30.1291,101.02,100.95,48.75763289]
[1646262541376,5.93270243,101.01,100.95,48.75763289]
[1646262541576,6.18270243,101.01,100.95,48.75763289]
[1646262541775,5.2,101.01,100.95,48.75763289]
[1646262543076,0.49746879,101.0,100.95,48.75763289]
[1646262543276,0.62403806,100.98,100.92,4.95]
[1646262543476,36.55909008,100.99,100.92,4.95]
[1646262543676,29.74327107,100.99,100.92,5.2]
[1646262543876,15.12,100.99,100.92,5.2]
[1646262544375,15.12,100.99,100.93,62.05496452]
[1646262545579,4.952,100.98,100.93,62.05496452]
[1646262545778,5.202,100.98,100.93,62.05496452]
[1646262546582,0.69938999,100.97,100.93,62.05496452]
[1646262546777,5.202,100.98,100.93,62.05496452]
[1646262546979,0.25,100.98,100.93,62.05496452]
[1646262547179,15.12,100.99,100.93,62.05496452]
[1646262547883,0.69963623,100.98,100.93,62.05496452]
[1646262548084,4.952,100.98,100.93,62.05496452]
[1646262548282,5.202,100.98,100.93,62.05496452]
[1646262548883,0.85953049,100.97,100.93,62.05496452]
[1646262549583,5.202,100.98,100.93,62.05496452]
[1646262551785,0.25,100.98,100.93,62.05496452]
[1646262551986,4.952,101.0,100.93,64.25537734]
[1646262552185,14.8672,101.01,100.95,66.17258063]
[1646262553084,15.1172,101.01,100.95,66.17258063]